bitfinex/quotes_SOLUSD_20241220
["timestamp","ask_amount","ask_price","bid_price","bid_amount"]
[1734669287084,15.42469092,196.62,196.57,0.6230473]
[1734669288984,23.776884,196.63,196.57,16.10890608]
[1734669289289,39.26274278,196.63,196.57,0.6230473]
[1734669289690,15.48585878,196.62,196.57,0.6230473]
[1734669292892,15.48585878,196.65,196.57,16.10890608]
[1734669293182,15.48585878,196.66,196.59,15.48585878]
[1734669293585,15.48585878,196.66,196.58,15.48585878]
[1734669294084,15.48585878,196.65,196.58,15.48585878]
[1734669294674,39.26274278,196.62,196.57,0.6230473]
[1734669294879,15.48585878,196.61,196.57,0.6230473]
[1734669295979,15.48585878,196.62,196.57,0.6230473]
[1734669296296,23.776884,196.61,196.57,0.6230473]
[1734669297645,15.48585878,196.58,196.57,0.6230473]
[1734669297786,39.26274278,196.58,196.57,0.6230473]
[1734669298097,23.776884,196.58,196.57,0.6230473]
[1734669298282,15.48585878,196.61,196.57,0.6230473]
[1734669298591,23.776884,196.61,196.57,0.6230473]
[1734669299694,23.776884,196.62,196.57,0.6230473]
[1734669300705,15.48585878,196.64,196.57,16.10890608]
[1734669300911,15.48585878,196.67,196.61,15.48585878]
[1734669301195,12.707,196.75,196.65,15.48585878]
[1734669301695,15.48585878,196.72,196.65,15.48585878]
[1734669302491,23.776884,196.71,196.65,15.48585878]
[1734669302716,39.26274278,196.71,196.64,15.48585878]
[1734669304516,15.48585878,196.7,196.63,15.48585878]
[1734669304674,15.48585878,196.67,196.6,15.48585878]
[1734669304882,23.776884,196.68,196.63,15.48585878]
[1734669305587,23.776884,196.69,196.63,15.48585878]
[1734669305789,39.26274278,196.69,196.62,15.48585878]
[1734669307475,39.26274278,196.69,196.61,35.48585878]
[1734669307675,39.26274278,196.69,196.61,15.48585878]
[1734669308704,39.26274278,196.69,196.62,15.48585878]
[1734669309606,15.48585878,196.68,196.61,15.48585878]
[1734669309808,15.48585878,196.66,196.59,17.09265878]
[1734669310399,15.48585878,196.66,196.59,1.6068]
[1734669310613,15.48585878,196.65,196.59,1.6068]
[1734669310812,39.26274278,196.64,196.57,16.10890608]
[1734669311020,15.48585878,196.63,196.57,0.6230473]
[1734669311698,7.6286,196.68,196.57,0.6230473]
[1734669311699,15.48585878,196.61,196.57,0.6230473]
[1734669311898,7.6286,196.68,196.57,0.6230473]
[1734669311899,15.48585878,196.59,196.57,0.6230473]
[1734669312105,39.26274278,196.58,196.57,0.6230473]
[1734669313282,39.26274278,196.58,196.42,8.60646701]
[1734669313283,20.0,196.54,196.42,23.32905056]
[1734669313607,15.48585878,196.47,196.42,7.84319178]
[1734669313797,15.48585878,196.46,196.42,7.84319178]
[1734669313992,15.48585878,196.48,196.41,15.48585878]
[1734669314201,23.776884,196.47,196.42,15.48585878]
[1734669314608,23.776884,196.47,196.41,15.48585878]
[1734669314914,23.776884,196.47,196.42,15.48585878]
[1734669315293,23.776884,196.49,196.44,15.48585878]
[1734669315493,23.776884,196.5,196.44,15.48585878]
[1734669315690,15.48585878,196.53,196.46,15.48585878]
[1734669316207,39.26274278,196.52,196.45,15.48585878]
[1734669317203,15.48585878,196.51,196.44,15.48585878]
[1734669317511,23.776884,196.5,196.44,15.48585878]
[1734669317713,15.48585878,196.49,196.43,15.48585878]
[1734669317905,23.776884,196.5,196.44,15.48585878]
[1734669319000,39.26274278,196.5,196.43,15.48585878]
[1734669319499,39.26274278,196.46,196.39,35.48585878]
[1734669319901,39.26274278,196.46,196.37,0.6230473]
[1734669319902,23.776884,196.42,196.37,0.6230473]
[1734669320142,15.48585878,196.41,196.37,0.6230473]
[1734669320298,15.48585878,196.39,196.37,0.6230473]
[1734669320493,23.776884,196.38,196.37,0.6230473]
[1734669321118,39.26274278,196.38,196.37,0.6230473]
[1734669323017,48.70036169,196.38,196.37,0.6230473]
[1734669323514,23.776884,196.38,196.37,0.6230473]
[1734669325997,24.92347769,196.39,196.37,0.6230473]
[1734669327323,24.92347769,196.38,196.37,0.6230473]
[1734669329027,48.70036169,196.38,196.37,0.6230473]
[1734669329936,48.70036169,196.38,196.37,4.73e-05]
[1734669331333,20.0,196.34,196.23,26.55687769]
[1734669331514,24.92347769,196.29,196.23,26.44501389]
[1734669332107,24.92347769,196.28,196.23,1.5215362]
[1734669332302,20.0,196.34,196.23,1.5215362]
[1734669332303,24.92347769,196.34,196.27,24.92347769]
[1734669332505,23.776884,196.34,196.28,24.92347769]
[1734669332705,23.776884,196.34,196.28,24.42347769]
[1734669332918,23.776884,196.34,196.24,0.76434466]
[1734669332919,48.70036169,196.34,196.27,24.92347769]
[1734669333821,24.92347769,196.32,196.25,24.92347769]
[1734669334029,48.70036169,196.34,196.27,24.92347769]
[1734669334329,48.70036169,196.34,196.28,24.92347769]
[1734669334629,24.92347769,196.33,196.26,24.92347769]
[1734669335143,48.70036169,196.34,196.27,24.92347769]
[1734669336520,24.92347769,196.32,196.25,44.92347769]
[1734669337125,24.92347769,196.32,196.25,24.92347769]
[1734669340935,23.776884,196.35,196.23,1.5215362]
[1734669341234,26.51807769,196.4,196.32,24.92347769]
[1734669341435,31.40017769,196.41,196.34,24.92347769]
[1734669341637,1.5375,196.45,196.35,24.92347769]
[1734669341638,24.92347769,196.42,196.35,24.92347769]
[1734669342209,1.5375,196.45,196.36,24.92347769]
[1734669342210,12.7269,196.44,196.36,24.92347769]
[1734669342435,24.92347769,196.43,196.36,24.92347769]
[1734669342813,12.7269,196.44,196.37,24.92347769]
[1734669342814,24.92347769,196.44,196.37,24.92347769]
[1734669343013,6.3745,196.46,196.38,24.92347769]
[1734669343217,31.29797769,196.46,196.38,24.92347769]
[1734669343448,24.92347769,196.45,196.37,24.92347769]
[1734669344239,24.92347769,196.44,196.37,24.92347769]
[1734669344945,15.56830945,196.44,196.37,15.56830945]
[1734669345449,20.20334018,196.5,196.33,0.76380053]
[1734669345450,15.56830945,196.45,196.38,15.56830945]
[1734669345847,15.56830945,196.46,196.38,15.56830945]
[1734669346164,15.56830945,196.45,196.34,20.0]
[1734669346363,15.56830945,196.43,196.35,15.56830945]
[1734669346562,23.776884,196.42,196.36,15.56830945]
[1734669346755,23.776884,196.42,196.34,20.0]
[1734669346756,23.776884,196.42,196.37,15.56830945]
[1734669347076,23.776884,196.43,196.37,15.56830945]
[1734669348461,23.776884,196.44,196.38,15.56830945]
[1734669349862,39.34519345,196.44,196.36,15.56830945]
[1734669350055,23.776884,196.42,196.36,15.56830945]
[1734669350564,23.776884,196.43,196.36,15.56830945]
[1734669351881,23.776884,196.43,196.37,15.56830945]
[1734669352462,15.56830945,196.42,196.35,15.56830945]
[1734669352677,39.34519345,196.43,196.35,15.56830945]
[1734669352851,39.34519345,196.41,196.34,15.56830945]
[1734669353169,23.776884,196.38,196.32,17.11950945]
[1734669353666,99.79760945,196.5,196.37,15.56830945]
[1734669353667,14.2523,196.5,196.37,15.56830945]
[1734669353864,14.2523,196.5,196.33,0.7639598]
[1734669353865,15.56830945,196.49,196.42,15.56830945]
[1734669354044,15.56830945,196.5,196.43,15.56830945]
[1734669354247,21.73930945,196.51,196.44,15.56830945]
[1734669354450,15.56830945,196.52,196.45,15.56830945]
[1734669354766,15.56830945,196.51,196.44,15.56830945]
[1734669355156,15.56830945,196.52,196.45,15.56830945]
[1734669355745,15.56830945,196.51,196.44,15.56830945]
[1734669357070,23.776884,196.5,196.44,15.56830945]
[1734669357252,23.776884,196.5,196.46,15.56830945]
[1734669357452,6.3706,196.57,196.49,15.56830945]
[1734669357453,15.56830945,196.56,196.49,15.56830945]
[1734669357665,15.56830945,196.57,196.49,15.56830945]
[1734669357865,17.18920945,196.59,196.52,15.56830945]
[1734669358168,15.56830945,196.59,196.52,15.56830945]
[1734669358580,15.56830945,196.59,196.51,15.56830945]
[1734669358953,12.7119,196.67,196.54,15.56830945]
[1734669359262,15.56830945,196.62,196.55,15.56830945]
[1734669360679,15.56830945,196.6,196.53,15.56830945]
[1734669361166,23.776884,196.59,196.53,15.56830945]
[1734669361667,23.776884,196.6,196.53,15.56830945]
[1734669362067,15.56830945,196.57,196.5,15.56830945]
[1734669362251,39.34519345,196.56,196.49,15.56830945]
[1734669362651,15.56830945,196.56,196.49,15.56830945]
[1734669362858,15.56830945,196.57,196.49,15.56830945]
[1734669363058,23.776884,196.56,196.49,15.56830945]
[1734669364477,23.776884,196.56,196.5,15.56830945]
[1734669367180,15.56830945,196.55,196.48,35.56830945]
[1734669367386,23.776884,196.54,196.48,35.56830945]
[1734669368361,39.34519345,196.54,196.48,20.0]
[1734669368662,23.776884,196.54,196.49,15.56830945]
[1734669368867,23.776884,196.54,196.48,20.0]
[1734669368868,23.10980945,196.68,196.56,20.0]
[1734669369071,15.56830945,196.69,196.62,15.56830945]
[1734669369262,15.56830945,196.7,196.63,15.56830945]
[1734669369977,15.56830945,196.68,196.61,15.56830945]
[1734669370364,15.56830945,196.78,196.67,15.56830945]
[1734669370567,15.56830945,196.79,196.72,15.56830945]
[1734669371079,8.1822,196.82,196.74,15.56830945]
[1734669371287,15.56830945,196.81,196.74,15.56830945]
[1734669371676,15.56830945,196.8,196.72,15.56830945]
[1734669372386,15.56830945,196.78,196.71,15.56830945]
[1734669372711,15.56830945,196.78,196.7,15.56830945]
[1734669372988,24.82266149,196.78,196.71,24.82266149]
[1734669373591,23.776884,196.77,196.71,24.82266149]
[1734669374067,48.59954549,196.77,196.7,24.82266149]
[1734669374387,48.59954549,196.77,196.67,24.82266149]
[1734669374388,48.59954549,196.74,196.67,24.82266149]
[1734669374686,23.776884,196.72,196.66,24.82266149]
[1734669374883,23.776884,196.72,196.69,24.82266149]
[1734669375187,12.7037,196.8,196.68,24.82266149]
[1734669375361,23.776884,196.81,196.73,24.82266149]
[1734669375560,48.59954549,196.81,196.74,24.82266149]
[1734669375987,23.776884,196.78,196.72,24.82266149]
[1734669376157,23.776884,196.78,196.73,24.82266149]
[1734669376484,24.82266149,196.82,196.75,24.82266149]
[1734669376785,24.82266149,196.81,196.74,24.82266149]
[1734669377285,24.82266149,196.85,196.77,24.82266149]
[1734669377589,0.6230473,196.87,196.82,24.82266149]
[1734669377886,0.6230473,196.87,196.83,24.82266149]
[1734669378983,0.6230473,196.87,196.82,24.82266149]
[1734669379292,24.82266149,196.86,196.78,24.82266149]
[1734669379666,24.82266149,196.86,196.79,24.82266149]
[1734669380093,23.776884,196.85,196.79,24.82266149]
[1734669381910,23.776884,196.85,196.75,2.26756175]
[1734669381911,24.82266149,196.82,196.75,24.82266149]
[1734669382080,24.82266149,196.82,196.72,6.6345]
[1734669382081,23.776884,196.79,196.73,24.82266149]
[1734669382389,6.0918,196.92,196.73,24.82266149]
[1734669382390,0.1884557,196.82,196.78,24.82266149]
[1734669382695,0.1884557,196.82,196.79,0.76202989]
[1734669383491,0.1884557,196.82,196.81,24.82266149]
[1734669383706,0.1884557,196.82,196.81,25.58454645]
[1734669383878,0.1884557,196.82,196.81,27.20624645]
[1734669384488,0.1884557,196.82,196.81,33.77634645]
[1734669385488,0.6148497,196.93,196.84,20.0]
[1734669385704,0.6148497,196.93,196.9,24.82266149]
[1734669386502,0.6148497,196.93,196.92,24.82266149]
[1734669389001,0.6148497,196.93,196.91,24.82266149]
[1734669389481,0.6148497,196.93,196.92,24.82266149]
[1734669389902,0.6148497,196.93,196.91,24.82266149]
[1734669390286,0.6148497,196.93,196.92,24.82266149]
[1734669390981,0.6148497,196.93,196.91,24.82266149]
[1734669391218,48.59954549,196.92,196.85,24.82266149]
[1734669391500,48.59954549,196.92,196.81,24.82266149]
[1734669391501,24.82266149,196.88,196.81,24.82266149]
[1734669391716,23.776884,196.87,196.81,24.82266149]
[1734669392002,48.59954549,196.87,196.8,24.82266149]
[1734669392399,23.776884,196.85,196.79,24.82266149]
[1734669392601,24.82266149,196.84,196.77,24.82266149]
[1734669392906,23.776884,196.83,196.77,24.82266149]
[1734669393101,48.59954549,196.83,196.76,24.82266149]
[1734669393405,23.776884,196.83,196.76,24.82266149]
[1734669393591,23.776884,196.83,196.77,24.82266149]
[1734669393987,24.82266149,196.88,196.8,24.82266149]
[1734669394196,23.776884,196.88,196.82,24.82266149]
[1734669394499,48.59954549,196.88,196.81,24.82266149]
[1734669398000,24.82266149,196.87,196.8,24.82266149]
[1734669398196,23.776884,196.86,196.8,24.82266149]
[1734669398503,48.59954549,196.86,196.79,24.82266149]
[1734669398719,48.59954549,196.89,196.82,24.82266149]
[1734669400392,23.776884,196.89,196.85,24.82266149]
[1734669400599,0.6148497,196.93,196.87,24.82266149]
[1734669401109,25.43751119,196.93,196.86,24.82266149]
[1734669401412,25.43751119,196.93,196.8,24.82266149]
[1734669401413,24.82266149,196.92,196.85,24.82266149]
[1734669401907,24.82266149,196.9,196.83,24.82266149]
[1734669402093,24.82266149,196.88,196.81,24.82266149]
[1734669402292,23.776884,196.87,196.83,24.82266149]
[1734669402904,24.82266149,196.92,196.84,24.82266149]
[1734669403108,23.776884,196.91,196.84,24.82266149]
[1734669403611,23.776884,196.89,196.83,24.82266149]
[1734669403793,48.59954549,196.89,196.82,24.82266149]
[1734669403993,48.59954549,196.87,196.8,24.82266149]
[1734669404909,24.82266149,196.85,196.78,24.82266149]
[1734669405106,23.776884,196.84,196.78,24.82266149]
[1734669405616,23.776884,196.82,196.76,24.82266149]
[1734669407291,48.59954549,196.82,196.75,24.82266149]
[1734669407497,24.82266149,196.81,196.74,24.82266149]
[1734669407699,48.59954549,196.8,196.73,24.82266149]
[1734669407901,48.59954549,196.78,196.71,24.82266149]
[1734669408104,23.776884,196.76,196.71,24.82266149]
[1734669408318,24.82266149,196.78,196.71,24.82266149]
[1734669408619,24.82266149,196.79,196.72,24.82266149]
[1734669408807,23.776884,196.8,196.74,24.82266149]
[1734669409006,24.82266149,196.84,196.77,24.82266149]
[1734669409192,23.776884,196.83,196.78,24.82266149]
[1734669409393,32.81806149,196.85,196.78,24.82266149]
[1734669409599,24.82266149,196.83,196.76,24.82266149]
[1734669409816,24.82266149,196.8,196.73,24.82266149]
[1734669410120,24.82266149,196.79,196.72,24.82266149]
[1734669411008,48.59954549,196.78,196.71,24.82266149]
[1734669411812,23.776884,196.76,196.7,24.82266149]
[1734669412516,24.82266149,196.79,196.72,24.82266149]
[1734669412723,23.776884,196.79,196.74,24.82266149]
[1734669412925,23.776884,196.8,196.75,24.82266149]
[1734669413109,23.776884,196.81,196.76,24.82266149]
[1734669413911,23.776884,196.81,196.75,24.82266149]
[1734669415224,48.59954549,196.81,196.75,24.82266149]
[1734669415622,48.59954549,196.81,196.74,24.82266149]
[1734669415814,24.82266149,196.81,196.74,24.82266149]
[1734669416018,7.9954,196.85,196.68,0.7623559]
[1734669416019,24.82266149,196.82,196.75,24.82266149]
[1734669416221,24.82266149,196.81,196.74,24.82266149]
[1734669416608,7.9954,196.85,196.76,24.82266149]
[1734669416609,24.82266149,196.83,196.76,24.82266149]
[1734669417018,23.776884,196.82,196.76,15.50611942]
[1734669417209,23.776884,196.83,196.78,15.50611942]
[1734669417609,23.776884,196.84,196.78,15.50611942]
[1734669418003,39.28300342,196.84,196.77,15.50611942]
[1734669418215,23.776884,196.84,196.78,15.50611942]
[1734669418427,15.50611942,196.86,196.79,15.50611942]
[1734669418630,15.50611942,196.88,196.81,15.50611942]
[1734669419026,15.50611942,196.89,196.82,15.50611942]
[1734669419204,8.1955,196.9,196.82,15.50611942]
[1734669419411,0.6148497,196.93,196.87,15.50611942]
[1734669419608,0.6148497,196.93,196.89,15.50611942]
[1734669420117,0.6148497,196.93,196.92,15.50611942]
[1734669420431,0.6148497,196.93,196.91,15.50611942]
[1734669420928,0.6148497,196.93,196.9,15.50611942]
[1734669421118,0.6148497,196.93,196.9,24.77489876]
[1734669421518,0.6148497,196.93,196.91,24.77489876]
[1734669423134,0.6148497,196.93,196.87,24.77489876]
[1734669423327,25.38974846,196.93,196.86,24.77489876]
[1734669423507,23.776884,196.92,196.86,24.77489876]
[1734669423713,48.55178276,196.92,196.85,24.77489876]
[1734669424109,48.55178276,196.92,196.84,24.77489876]
[1734669424110,24.77489876,196.91,196.84,24.77489876]
[1734669424329,48.55178276,196.92,196.85,24.77489876]
[1734669424720,23.776884,196.92,196.86,24.77489876]
[1734669425637,48.55178276,196.92,196.85,24.77489876]
[1734669428240,24.77489876,196.91,196.84,24.77489876]
[1734669428537,0.6148497,196.93,196.89,24.77489876]
[1734669428911,0.6148497,196.93,196.91,24.77489876]
[1734669429323,0.6148497,196.93,196.89,24.77489876]
[1734669429622,0.6148497,196.93,196.85,24.77489876]
[1734669429939,24.77489876,196.92,196.85,24.77489876]
[1734669430519,23.776884,196.91,196.85,24.77489876]
[1734669430720,48.55178276,196.91,196.84,24.77489876]
[1734669430920,24.77489876,196.9,196.83,24.77489876]
[1734669431538,23.776884,196.91,196.84,24.77489876]
[1734669431539,48.55178276,196.91,196.84,24.77489876]
[1734669433049,23.776884,196.92,196.87,24.77489876]
[1734669433347,23.776884,196.92,196.86,24.77489876]
[1734669434238,23.776884,196.92,196.87,24.77489876]
[1734669434650,23.776884,196.92,196.85,24.77489876]
[1734669434815,24.77489876,196.91,196.84,24.77489876]
[1734669435020,23.776884,196.9,196.85,24.77489876]
[1734669435215,24.77489876,196.92,196.85,24.77489876]
[1734669435442,25.38974846,196.93,196.86,24.77489876]
[1734669435647,48.55178276,196.92,196.85,24.77489876]
[1734669436464,23.776884,196.92,196.86,24.77489876]
[1734669436663,23.776884,196.92,196.87,24.77489876]
[1734669437149,23.776884,196.92,196.86,24.77489876]
[1734669439741,24.77489876,196.91,196.84,24.77489876]
[1734669440050,48.55178276,196.92,196.85,24.77489876]
[1734669441654,48.55178276,196.92,196.84,24.77489876]
[1734669441655,24.77489876,196.91,196.84,24.77489876]
[1734669441950,24.77489876,196.91,196.83,24.77489876]
[1734669442325,48.55178276,196.9,196.83,24.77489876]
[1734669442524,48.55178276,196.89,196.82,24.77489876]
[1734669443028,39.27457935,196.89,196.82,15.49769535]
[1734669443348,15.49769535,196.88,196.81,15.49769535]
[1734669443552,39.27457935,196.9,196.83,15.49769535]
[1734669443749,15.49769535,196.89,196.82,15.49769535]
[1734669444527,39.27457935,196.9,196.83,15.49769535]
[1734669445251,15.49769535,196.89,196.82,15.49769535]
[1734669445551,15.49769535,196.86,196.79,15.49769535]
[1734669445749,15.49769535,196.84,196.77,15.49769535]
[1734669445937,15.49769535,196.84,196.78,15.49769535]
[1734669446137,8.1524,196.9,196.82,15.49769535]
[1734669446445,23.776884,196.88,196.82,15.49769535]
[1734669446640,23.776884,196.88,196.83,15.49769535]
[1734669447153,23.776884,196.89,196.83,15.49769535]
[1734669447448,39.27457935,196.89,196.82,15.49769535]
[1734669447656,15.49769535,196.88,196.81,15.49769535]
[1734669447835,15.49769535,196.86,196.79,15.49769535]
[1734669448156,23.776884,196.86,196.8,15.49769535]
[1734669448336,23.776884,196.87,196.8,15.49769535]
[1734669448536,15.49769535,196.88,196.81,15.49769535]
[1734669448736,15.49769535,196.89,196.82,15.49769535]
[1734669449138,23.776884,196.89,196.84,15.49769535]
[1734669449338,23.776884,196.91,196.85,15.49769535]
[1734669449969,0.6148497,196.93,196.88,15.49769535]
[1734669450173,0.6148497,196.93,196.89,15.49769535]
[1734669450859,0.6148497,196.93,196.87,15.49769535]
[1734669451059,0.6148497,196.93,196.88,15.49769535]
[1734669451273,0.6148497,196.93,196.89,15.49769535]
[1734669451632,0.6148497,196.93,196.85,20.0]
[1734669451837,16.11254505,196.93,196.86,15.49769535]
[1734669452252,0.6148497,196.93,196.87,15.49769535]
[1734669453340,39.27457935,196.92,196.84,15.49769535]
[1734669453540,15.49769535,196.87,196.8,15.49769535]
[1734669453740,15.49769535,196.86,196.79,15.49769535]
[1734669453955,15.49769535,196.85,196.78,15.49769535]
[1734669454137,30.187684,196.9,196.79,15.49769535]
[1734669454339,30.187684,196.9,196.77,1.5718]
[1734669454340,30.187684,196.9,196.8,15.49769535]
[1734669454541,23.776884,196.87,196.81,15.49769535]
[1734669455566,15.49769535,196.89,196.82,15.49769535]
[1734669455771,23.776884,196.9,196.85,15.49769535]
[1734669455942,15.49769535,196.92,196.8,16.25962577]
[1734669456146,0.6148497,196.93,196.88,15.49769535]
[1734669456866,0.6148497,196.93,196.83,20.76182982]
[1734669456867,0.6148497,196.93,196.87,15.49769535]
[1734669457437,0.6148497,196.93,196.86,15.49769535]
[1734669457649,23.776884,196.92,196.86,15.49769535]
[1734669459767,39.27457935,196.92,196.85,15.49769535]
[1734669461058,39.27457935,196.92,196.84,15.49769535]
[1734669461059,15.49769535,196.91,196.84,15.49769535]
[1734669461257,23.776884,196.92,196.85,15.49769535]
[1734669463269,23.71573168,196.92,196.86,15.49769535]
[1734669463666,23.71573168,196.92,196.85,15.49769535]
[1734669463855,23.71573168,196.92,196.86,15.49769535]
[1734669464175,23.71573168,196.92,196.85,15.49769535]
[1734669464363,15.49769535,196.91,196.84,15.49769535]
[1734669464672,39.21342703,196.92,196.85,15.49769535]
[1734669464877,23.71573168,196.92,196.85,15.49769535]
[1734669467475,0.6148497,196.93,196.86,15.49769535]
[1734669467678,0.6148497,196.93,196.89,15.49769535]
[1734669469178,0.6148497,196.93,196.9,15.49769535]
[1734669469364,0.6148497,196.93,196.91,15.49769535]
[1734669473876,0.6148497,196.93,196.89,35.49769535]
[1734669474275,0.6148497,196.93,196.9,15.49769535]
[1734669474466,0.6148497,196.93,196.91,15.49769535]
[1734669474952,0.6148497,196.93,196.92,15.49769535]
[1734669475155,0.6148497,196.93,196.92,16.25932064]
[1734669476076,4.97e-05,196.93,196.92,16.25932064]
[1734669476379,4.97e-05,196.93,196.92,17.90582064]
[1734669477075,1.6652,197.11,196.96,20.0]
[1734669477278,1.6652,197.11,197.05,15.49769535]
[1734669477479,0.6148497,197.12,197.06,15.49769535]
[1734669477680,0.6148497,197.12,197.07,15.49769535]
[1734669479760,0.6148497,197.12,197.06,15.49769535]
[1734669479966,0.6148497,197.12,197.07,15.49769535]
[1734669480657,39.27457935,197.11,197.02,20.0]
[1734669480858,15.49769535,197.09,197.01,15.49769535]
[1734669481579,15.49769535,197.07,197.0,15.49769535]
[1734669481784,15.49769535,197.05,196.98,15.49769535]
[1734669481984,15.49769535,197.06,196.99,15.49769535]
[1734669482165,15.49769535,197.07,197.0,15.49769535]
[1734669482364,39.27457935,197.06,196.99,15.49769535]
[1734669482774,39.27457935,197.04,196.97,15.49769535]
[1734669482976,15.49769535,197.05,196.98,15.49769535]
[1734669483287,15.49769535,197.05,196.99,15.49769535]
[1734669484085,15.49769535,197.06,196.99,15.49769535]
[1734669484581,15.49769535,197.07,197.0,15.49769535]
[1734669484773,23.776884,197.06,197.01,15.49769535]
[1734669485083,23.776884,197.07,197.01,15.49769535]
[1734669486470,23.776884,197.08,197.02,15.49769535]
[1734669486679,0.6148497,197.12,197.07,15.49769535]
[1734669486880,0.6148497,197.12,197.08,15.49769535]
[1734669487678,0.6148497,197.12,197.09,15.49769535]
[1734669487889,0.6148497,197.12,197.08,15.49769535]
[1734669488363,0.6148497,197.12,197.03,0.76098849]
[1734669488364,0.6148497,197.12,197.09,15.49769535]
[1734669488769,0.6148497,197.12,197.1,15.49769535]
[1734669489906,0.6148497,197.12,197.11,15.49769535]
[1734669490964,0.6148497,197.12,197.11,16.25847245]
[1734669491497,117.38259484,197.31,197.11,16.25847245]
[1734669491498,15.49769535,197.27,197.14,20.0]
[1734669491696,15.49769535,197.27,197.2,15.49769535]
[1734669492818,15.49769535,197.27,197.19,15.49769535]
[1734669493699,15.49769535,197.27,197.2,15.49769535]
[1734669494097,23.776884,197.26,197.2,15.49769535]
[1734669494971,15.49769535,197.27,197.2,15.49769535]
[1734669495169,15.49769535,197.28,197.21,15.49769535]
[1734669495394,23.62619535,197.29,197.22,15.49769535]
[1734669497702,39.27457935,197.28,197.21,15.49769535]
[1734669498601,15.49769535,197.24,197.14,20.0]
[1734669498780,15.49769535,197.24,197.17,15.49769535]
[1734669499486,23.776884,197.24,197.18,15.49769535]
[1734669499886,39.27457935,197.24,197.17,15.49769535]
[1734669500092,39.27457935,197.24,197.11,6.2749]
[1734669500093,15.49769535,197.21,197.11,6.2749]
[1734669500340,39.27457935,197.18,197.12,15.49769535]
[1734669500802,23.776884,197.18,197.13,15.49769535]
[1734669501189,23.776884,197.19,197.13,15.49769535]
[1734669501696,23.776884,197.19,197.07,6.92989414]
[1734669501697,39.27457935,197.19,197.12,15.49769535]
[1734669501898,39.27457935,197.17,197.1,15.49769535]
[1734669503598,15.49769535,197.11,197.05,15.49769535]
[1734669504207,15.49769535,197.12,197.05,15.49769535]
[1734669504403,23.776884,197.11,197.05,15.49769535]
[1734669504708,15.49769535,197.06,196.97,6.1232]
[1734669504901,15.49769535,197.06,196.94,0.76117948]
[1734669505088,15.49769535,197.06,196.99,15.49769535]
[1734669505293,23.776884,197.08,197.03,15.49769535]
[1734669505492,39.27457935,197.08,197.01,15.49769535]
[1734669505793,15.49769535,197.07,197.01,15.49769535]
[1734669506104,23.776884,197.06,197.01,15.49769535]
[1734669506491,39.27457935,197.06,197.0,15.49769535]
[1734669506792,39.27457935,197.06,196.99,15.49769535]
[1734669507102,23.776884,197.06,196.99,15.49769535]
[1734669507403,21.57449535,197.09,197.02,15.49769535]
[1734669507611,39.27457935,197.08,197.01,15.49769535]
[1734669508406,15.49769535,197.06,196.99,15.49769535]
[1734669508587,15.49769535,197.07,197.0,15.49769535]
[1734669508785,23.776884,197.06,197.0,15.49769535]
[1734669509408,15.49769535,197.08,197.01,15.49769535]
[1734669509599,23.776884,197.07,197.01,15.49769535]
[1734669509798,23.776884,197.08,197.01,15.49769535]
[1734669510288,15.49769535,197.09,197.02,15.49769535]
[1734669510620,15.49769535,197.07,197.0,15.49769535]
[1734669510918,23.776884,197.08,197.02,15.49769535]
[1734669512105,15.49769535,197.09,197.02,15.49769535]
[1734669512304,15.49769535,197.12,197.04,15.49769535]
[1734669512899,15.49769535,197.11,197.04,15.49769535]
[1734669513211,15.49769535,197.1,197.02,15.49769535]
[1734669513508,39.27457935,197.09,197.02,15.49769535]
[1734669513908,39.27457935,197.07,197.0,15.49769535]
[1734669514086,15.49769535,197.06,197.0,15.49769535]
[1734669514410,15.49769535,197.07,197.0,15.49769535]
[1734669514592,23.776884,197.06,197.0,15.49769535]
[1734669515502,15.49769535,197.05,196.98,15.49769535]
[1734669516599,39.27457935,197.04,196.97,15.49769535]
[1734669516994,15.49769535,196.99,196.88,17.33614299]
[1734669517194,15.49769535,196.99,196.92,15.49769535]
[1734669517791,30.293784,197.04,196.9,15.49769535]
[1734669517792,15.49769535,196.96,196.9,15.49769535]
[1734669517994,15.49769535,196.94,196.88,15.49769535]
[1734669518212,15.49769535,196.94,196.87,15.49769535]
[1734669518512,15.49769535,196.93,196.86,15.49769535]
[1734669518699,15.49769535,196.92,196.85,15.49769535]
[1734669519086,15.49769535,196.89,196.83,15.49769535]
[1734669519290,15.49769535,196.84,196.73,0.76205052]
[1734669519491,15.49769535,196.84,196.77,15.49769535]
[1734669520101,15.49769535,196.86,196.79,15.49769535]
[1734669521397,19.2123,196.93,196.82,15.49769535]
[1734669521398,15.49769535,196.89,196.82,15.49769535]
[1734669521815,15.49769535,196.88,196.82,15.49769535]
[1734669523114,15.49769535,196.85,196.78,15.49769535]
[1734669524823,15.49769535,196.84,196.77,15.49769535]
[1734669525005,15.49769535,196.9,196.77,15.49769535]
[1734669525210,15.49769535,196.83,196.76,15.49769535]
[1734669525406,15.49769535,196.82,196.75,15.49769535]